[Event "Julius Baer Generation Cup Prelims 2022"]
[Site "Online"]
[Date "2022.09.14"]
[Round "12.3"]
[White "Saric, Ivan"]
[Black "Navara, David"]
[Result "0-1"]
[ECO "B12"]
[WhiteElo "2668"]
[BlackElo "2681"]
[Annotator "TA"]
[PlyCount "92"]
[EventDate "2022.09.12"]
[EventType "tourn"]
[EventCountry "NET"]
[SourceTitle "playchess.com"]
[Source "ChessBase"]
[SourceQuality "1"]
[TimeControl "900+10"]

{[%evp 9,92,0,0,0,4,0,0,0,0,-10,-7,0,0,-1,43,43,38,16,14,28,24,0,29,16,59,60,96,48,43,41,41,-36,0,-116,-119,-122,-118,-209,-208,-215,-210,-397,-390,-389,-380,-711,-692,-29983,-356,-354,0,0,0,0,0,0,0,0,0,0,0,0,0,-16,66,-142,-146,-121,-149,-347,-328,-411,-400,-564,-557,-540,-526,-1139,-1113,-5716,-5711,-5543,-5518,-1318,-1307]} 1. e4 {[%emt 0:00:00]} c6 {[%emt 0:00:00]} 2. d4 {[%emt 0:00:19]} d5 {[%emt 0:00:00]} 3. e5 {[%emt 0:00:01]} c5 {[%emt 0:00:02]} 4. Nf3 {[%emt 0:00:02]} cxd4 {[%emt 0:00:04]} 5. Qxd4 {[%emt 0:00:24]} Nc6 {[%emt 0:00:16][%cal Bb8c6,Bc6b4,Bb4d3][%mdl 32] EASY} 6. Qf4 {[%emt 0:00:02] BESTDEEP. B12: Caro-Kann: Advance Variation.} e6 {[%emt 0:00:02] BESTDEEP} 7. Bd3 {[%emt 0:00:04] CPLX 2.5 4 (Nb1-c3) (=2)} Nb4 {[%emt 0:00:15] BESTDEEP} 8. Nc3 {[%emt 0:00:03] CPLX 2.8. The position is equal.} Nxd3+ {[%emt 0:00:04]} 9. cxd3 {[%emt 0:00:00] RECAPT} Ne7 {[%emt 0:02:09] BESTDEEP} 10. h4 {[%emt 0:00:04] CPLX 2.9 0 (Nf3-g5) (=1)} h5 {[%emt 0:00:52] [#] BESTDEEP} 11. Ne2 $146 {[%emt 0:00:29] BESTDEEP} (11. Ng5 Nf5 $15) ({Predecessor:} 11. Bd2 Qb6 12. O-O Bd7 13. a4 Nf5 14. Ne2 Qa6 15. Rfc1 Qxd3 16. Ned4 Be7 17. Rc7 Nxh4 18. Nxh4 {½-½ (29) Verheij,W-Korn,C ICCF email 2020}) 11... Nf5 {[%emt 0:00:56] CPLX 2.5 44 (Ne7-g6) (=6)} 12. Ng3 {[%emt 0:00:32] DEEPSTRONG} Nxg3 {[%emt 0:01:26] BESTDEEP} 13. fxg3 {[%emt 0:00:42] RECAPT 22 (Qf4xg3) (=3)} (13. Qxg3 $5 {[%cal Re1g1]} Qd7 14. O-O $11) 13... Qb6 {[%emt 0:00:03] BESTDEEP} 14. Bd2 {[%emt 0:01:32] Ng5 is the strong threat. CPLX 3.0} Be7 {[%emt 0:00:22] BESTDEEP} 15. g4 {[%emt 0:00:51] BESTDEEP} Bd7 {[%emt 0:00:41][%cal Bc8d7,Bd7b5,Bb5e8,Be8c6][%mdl 32] DEEPSTRONG} 16. Rc1 {[%emt 0:01:49] BESTDEEP} Bb5 {[%emt 0:01:22] CPLX 3.1 43 (Ra8-c8) (=7)} 17. Rc3 {[%emt 0:01:56] CPLX 3.3 0 (Ke1-e2) (=2)} Qa6 {[%emt 0:02:28] CPLX 3.3 36 (Bb5-c6) (=9)} 18. Rc7 {[%emt 0:01:32] MISSDEEP-Ke1-e2 48 (Ke1-e2) (=6)} (18. Ke2 $1 $16) 18... Qb6 {[%emt 0:01:34] [#] CPLX 3.9 0 (Bb5-d7) (=9)} 19. Rxe7+ {[%emt 0:00:41] EASY} Kxe7 {[%emt 0:00:00] RECAPT} 20. Bb4+ {[%emt 0:00:07] RELBLUND 77 (Bd2-e3) (=10)} (20. Ng5 Be8 21. Be3 d4 22. Bxd4 Qb4+ 23. Kf2 Rc8 $15) ({White should try} 20. Be3 $14 Qa5+ 21. Bd2) 20... Kd8 {[%emt 0:00:22] CPLX 5.0 36 (Ke7-e8) (=10)} (20... Ke8 $5 {[%cal Rb5d3]} 21. Qg5 Kd7 22. Qe7+ Kc8 $15) 21. Ng5 {[%emt 0:02:05] MISSDEEP-Ke1-e2 116 (Ke1-e2) (=17)} (21. Ke2 $1 $11 {keeps the balance.}) 21... Be8 $17 {[%emt 0:00:02] EASY} (21... Bxd3 $6 22. Nxf7+ Kd7 23. Nxh8 Rxh8 24. gxh5 $11) 22. Kd2 {[%emt 0:00:07] CPLX 4.4 3 (Rh1-f1) (=16)} Rc8 {[%emt 0:01:23] CPLX 5.2} 23. gxh5 {[%emt 0:02:46] CPLX 6.3 91 (Bb4-c3) (=20)} (23. Bc3 $17 {is a better defense.}) 23... d4 $1 $19 {[%emt 0:01:30] DEEPSTRONG=>BLUNDERREACT} (23... Qc7 $2 24. Nxe6+ $1 {[%mdl 512]} fxe6 25. Qg5+ Kd7 26. Qxg7+ Kc6 27. Rc1+ (27. Qxh8 Kb5 $14) 27... Kb6 28. Rxc7 $18) 24. Ba3 {[%emt 0:01:21] BESTDEEP} Qa5+ {[%emt 0:00:17] CPLX 6.2} (24... Rxh5 25. g4 Qa5+ 26. Kd1 Qa4+ 27. Ke1) 25. Ke2 $2 {[%emt 0:00:12] CPLX 6.9 187 (Kd2-d1) (=27)} (25. Kd1 Qa4+ 26. Ke1) 25... Rc2+ {[%emt 0:01:47] CPLX 6.2} 26. Kf3 {[%emt 0:01:08] CPLX 6.0} Bc6+ {[%emt 0:00:23] CPLX 6.6} 27. Ne4 $2 {[%emt 0:00:06] CPLX 6.7 331 (Kf3-g3) (=40)} (27. Kg3 Rxg2+ 28. Kh3) 27... Rxh5 {[%emt 0:00:01] CPLX 6.2} 28. g4 {[%emt 0:00:14] [#] Prevents Rf5. RELBLUND 400 (Kf3-g3) (=56)} Rxe5 $2 {[%emt 0:01:09] RELBLUND 400 (Qa5-b5) (=23)} (28... Qb5 $1 {mates} 29. Rd1 g5 30. Qd2 Rxd2 31. Rxd2 Bxe4+ 32. Kf2 Rxh4 33. Bd6 Rh2+ 34. Ke1 Rxd2 35. Kxd2 Qxb2+ 36. Ke1 Bxd3 37. Be7+ Kxe7 38. Kd1 Qe2+ 39. Kc1 Qc2#) 29. Qxf7 {[%emt 0:00:04] EASY} Rxe4 $2 {[%emt 0:00:18] MISSDEEP-Qa5-b5 354 (Qa5-b5) (=37)} 30. Qf8+ $11 {[%emt 0:00:29] EASY} Kc7 {[%emt 0:00:05] EASY} 31. Qd6+ {[%emt 0:00:10] CPLX 7.1} Kb6 {[%emt 0:00:16] ( -> ...Re3+). MISS-Kc7-c8 0 (Kc7-c8) (=34)} 32. dxe4 {[%emt 0:00:00] BESTDEEP} Qd2 $40 {[%emt 0:00:05][%csl Gd4][%cal Rd2e3][%mdl 128] Black mounts an attack. The board is on fire. EASY} 33. Qb4+ {[%emt 0:00:16] EASY} Qxb4 {[%emt 0:00:01] EASY} 34. Bxb4 {[%emt 0:00:00] RECAPT} Rxb2 {[%emt 0:00:01][%mdl 4096] Endgame KRB-KRB. EASY} 35. Bf8 {[%emt 0:00:06] CPLX 2.8} d3 {[%emt 0:00:19] Strongly threatening ...Re2. CPLX 2.6 0 (Rb2xa2) (=29)} 36. Bxg7 {[%emt 0:00:08] CPLX 2.8 16 (Rh1-d1) (=42)} Re2 {[%emt 0:00:01] RELBLUND 82 (Rb2-b4) (=31)} (36... Rb4 $11 37. Rd1 Bxe4+ 38. Ke3 Bh7) 37. Rb1+ $2 {[%emt 0:00:11] RELBLUND 208 (Bg7-d4) (=47)} (37. Bd4+ $1 $14 {was the only good move.} Kc7 38. Be3 Rxa2 39. Bf4+ Kd7 40. Rd1) 37... Kc5 $17 {[%emt 0:00:13] Black is more active. EASY} 38. Rc1+ {[%emt 0:00:43] CPLX 3.4} Kd6 {[%emt 0:00:06] CPLX 3.3} 39. Rd1 $2 {[%emt 0:00:07] This costs White the game. CPLX 3.6 198 (Bg7-f8) (=50)} (39. Bf8+ $17 {only move.} Kd7 40. Bb4) 39... Bxe4+ $19 {[%emt 0:00:02] EASY} 40. Kf4 {[%emt 0:00:01] CPLX 2.9 83 (Kf3-g3) (=51)} Kd5 {[%emt 0:00:16] CPLX 2.8} 41. h5 {[%emt 0:00:02] MISSDEEP-Bg7-c3 164 (Bg7-c3) (=54)} (41. Bc3 $142 e5+ 42. Kg5 (42. Bxe5 $2 Rf2+ 43. Ke3 Rf3+ 44. Kd2 Kxe5 $19)) 41... e5+ {[%emt 0:00:12] BESTDEEP. Black is clearly winning.} 42. Kg3 {[%emt 0:00:15] DEEPSTRONG} Rxa2 {[%emt 0:00:15] White must now prevent ...b5. CPLX 3.0} 43. g5 {[%emt 0:00:20] CPLX 2.9 400 (Bg7-h6) (=62)} Rg2+ {[%emt 0:00:02] CPLX 3.0=>BLUNDERREACT} 44. Kh4 {[%emt 0:00:00] MISSDEEP-Kg3-h3 400 (Kg3-h3) (=70)} d2 {[%emt 0:00:24] And now ...Bf5 would win. CPLX 2.8=>BLUNDERREACT} 45. g6 {[%emt 0:00:28] BESTDEEP} Bc2 {[%emt 0:00:08] DEEPSTRONG} 46. Rxd2+ {[%emt 0:00:13] BESTDEEP} Rxd2 {[%emt 0:00:00] Weighted Error Value: White=0.84/Black=0.25 (precise)} 0-1

[Event "Julius Baer Generation Cup Prelims 2022"]
[Site "Online"]
[Date "2022.09.14"]
[Round "14.2"]
[White "Saric, Ivan"]
[Black "Aronian, Levon"]
[Result "1/2-1/2"]
[ECO "C67"]
[WhiteElo "2668"]
[BlackElo "2759"]
[Annotator "TA"]
[PlyCount "143"]
[EventDate "2022.09.12"]
[EventType "tourn"]
[EventCountry "NET"]
[SourceTitle "playchess.com"]
[Source "ChessBase"]
[SourceQuality "1"]
[TimeControl "900+10"]

{[%evp 15,143,13,10,18,29,20,12,8,16,12,10,17,24,23,16,0,-5,0,10,9,18,18,13,2,5,19,13,6,14,17,20,0,0,0,31,29,31,29,27,24,53,60,65,64,50,53,69,40,50,33,32,22,47,49,61,52,118,118,113,69,69,69,77,78,78,78,71,75,99,99,99,99,99,98,106,98,98,98,98,98,98,98,98,98,123,123,126,126,126,126,126,126,126,126,126,126,126,126,126,126,126,126,126,126,126,126,126,96,99,99,126,126,126,126,126,126,126,126,126,126,126,126,126,126,126,0,126,0,126,0]} 1. e4 {[%emt 0:00:00]} e5 {[%emt 0:00:00]} 2. Nf3 {[%emt 0:00:02]} Nc6 {[%emt 0:00:01]} 3. Bb5 {[%emt 0:00:07]} Nf6 {[%emt 0:00:02]} 4. O-O {[%emt 0:00:01][%cal Bh1f1,Bf1e1,Be1e5][%mdl 32]} Nxe4 {[%emt 0:00:01]} 5. Re1 {[%emt 0:00:01]} Nd6 {[%emt 0:00:01]} 6. Nxe5 {[%emt 0:00:01]} Be7 {[%emt 0:00:01]} 7. Bf1 {[%emt 0:00:07]} Nxe5 {[%emt 0:00:08]} 8. Rxe5 {[%emt 0:00:00]} O-O {[%emt 0:00:01]} 9. Nc3 {[%emt 0:00:01] C67: Ruy Lopez: Berlin Defence: 4 0-0 Nxe4.} Bf6 {[%emt 0:00:10]} 10. Re1 {[%emt 0:00:10]} Re8 {[%emt 0:00:07]} 11. Nd5 {[%emt 0:01:23] The position is equal.} Rxe1 {[%emt 0:00:04]} 12. Qxe1 {[%emt 0:00:09][%cal Od2d4]} b6 {[%emt 0:00:01]} 13. Nxf6+ {[%emt 0:00:09]} Qxf6 {[%emt 0:00:02]} 14. d3 {[%emt 0:00:30] 14.f3 is not played anymore.} Bb7 {[%emt 0:00:03]} 15. Qc3 {[%emt 0:00:14]} Qxc3 {[%emt 0:00:13]} 16. bxc3 {[%emt 0:00:00][%cal Bb2c3,Bc3c4][%mdl 32] [#]} Bc6 $146 {[%emt 0:00:34]} ({Predecessor:} 16... Ne8 17. c4 c5 18. f3 Nd6 19. Kf2 Bc6 20. g3 Ba4 21. c3 Nb7 22. Bf4 Re8 {½-½ (40) Wang,H (2744)-Anand,V (2751) Stavanger 2022}) 17. a4 {[%emt 0:00:40]} Nb7 {[%emt 0:00:07]} 18. Bf4 {[%emt 0:00:21]} d6 {[%emt 0:00:03]} 19. d4 {[%emt 0:00:11]} Na5 {[%emt 0:00:12]} 20. c4 {[%emt 0:00:12]} Be4 {[%emt 0:00:14]} 21. Ra2 {[%emt 0:00:18]} h6 {[%emt 0:00:36]} 22. f3 {[%emt 0:00:07]} Bf5 {[%emt 0:00:08]} 23. c5 {[%emt 0:00:17]} Be6 {[%emt 0:00:16]} 24. Ra3 {[%emt 0:00:07]} dxc5 {[%emt 0:03:35]} 25. dxc5 {[%emt 0:00:05]} Nb7 {[%emt 0:00:01]} 26. Bxc7 {[%emt 0:01:42]} Nxc5 {[%emt 0:00:36]} 27. a5 {[%emt 0:00:07]} bxa5 {[%emt 0:00:02]} 28. Rxa5 {[%emt 0:00:17]} Nb7 {[%emt 0:00:01]} 29. Rb5 {[%emt 0:00:11]} Nd8 {[%emt 0:00:02]} 30. Bd3 {[%emt 0:01:07]} Rc8 {[%emt 0:00:02]} 31. Bg3 {[%emt 0:01:01] White is more active.} Nc6 {[%emt 0:00:36]} 32. Bf2 {[%emt 0:00:10]} a5 {[%emt 0:00:20]} 33. Bc5 {[%emt 0:01:41]} a4 {[%emt 0:00:27]} 34. Ba3 {[%emt 0:00:40]} Nd4 {[%emt 0:00:15]} 35. Rc5 {[%emt 0:00:01]} Ra8 {[%emt 0:01:26]} ({Better is} 35... Rd8 $14) 36. Bb2 $16 {[%emt 0:00:39]} Rd8 {[%emt 0:00:04]} 37. Ra5 {[%emt 0:00:26] [#] aiming for Bxd4.} Nb3 {[%emt 0:00:14]} 38. Rb5 {[%emt 0:01:11]} (38. cxb3 $2 Rxd3 39. h4 (39. bxa4 $2 Rd1+ 40. Kf2 Rd2+ 41. Kg3 Rxb2 $19) 39... Rxb3 $17) 38... Nd2 {[%emt 0:00:50]} 39. Rb4 {[%emt 0:00:17] Prevents Bc4.} Nb3 {[%emt 0:00:37]} 40. cxb3 {[%emt 0:01:15] Bc2 is the strong threat.} Rxd3 {[%emt 0:00:02]} 41. bxa4 {[%emt 0:00:01]} Rb3 {[%emt 0:00:02]} 42. Rxb3 {[%emt 0:00:02]} Bxb3 {[%emt 0:00:00][%mdl 4096] Endgame KB-KB} 43. a5 {[%emt 0:00:00]} Bc4 {[%emt 0:00:00]} 44. Kf2 {[%emt 0:00:01]} g6 {[%emt 0:00:01]} 45. Ke3 {[%emt 0:00:00]} Kf8 {[%emt 0:00:03]} 46. Kd4 {[%emt 0:00:04]} Bf1 {[%emt 0:00:01]} 47. g3 {[%emt 0:00:08]} Ke7 {[%emt 0:00:05]} 48. Kc5 {[%emt 0:00:12]} Kd7 {[%emt 0:00:03]} 49. Kb6 {[%emt 0:00:05]} Bg2 {[%emt 0:00:02]} 50. f4 {[%emt 0:00:03]} h5 {[%emt 0:00:01]} 51. a6 {[%emt 0:00:26][%cal Ba5a6,Ba6a7][%mdl 32]} f5 {[%emt 0:00:16]} 52. a7 {[%emt 0:00:04]} Ba8 {[%emt 0:00:04]} 53. Kc5 {[%emt 0:00:05]} Bh1 {[%emt 0:00:03]} 54. Kd4 {[%emt 0:00:02] [#] Strongly threatening Ke5.} Ke6 {[%emt 0:00:01]} 55. Ba3 {[%emt 0:00:38]} Ba8 {[%emt 0:00:03]} 56. Bf8 {[%emt 0:00:01]} Bh1 {[%emt 0:00:02]} 57. Bg7 {[%emt 0:00:01]} Ba8 {[%emt 0:00:01]} 58. Be5 {[%emt 0:00:00]} Bh1 {[%emt 0:00:02]} 59. Ke3 {[%emt 0:00:05]} Ba8 {[%emt 0:00:02]} 60. Kf2 {[%emt 0:00:00]} Bb7 {[%emt 0:00:02]} 61. h3 {[%emt 0:00:04]} Ba8 {[%emt 0:00:01]} 62. Ke3 {[%emt 0:00:12]} Bh1 {[%emt 0:00:02]} 63. Kd4 {[%emt 0:00:01]} Ba8 {[%emt 0:00:02]} 64. Kc5 {[%emt 0:00:02]} Bh1 {[%emt 0:00:02]} 65. Kb6 {[%emt 0:00:00] And now Kc7 would win.} Kd7 {[%emt 0:00:01]} 66. Bd4 {[%emt 0:00:04]} Ba8 {[%emt 0:00:03]} 67. h4 {[%emt 0:00:15]} Bh1 {[%emt 0:00:02]} 68. Be5 {[%emt 0:00:01]} Ba8 {[%emt 0:00:02]} 69. Kc5 {[%emt 0:00:01]} Bh1 {[%emt 0:00:01]} 70. Kb6 {[%emt 0:00:00]} Ba8 $1 {[%emt 0:00:02]} 71. Kc5 {[%emt 0:00:01]} Bh1 $1 {[%emt 0:00:01]} 72. Kb6 {[%emt 0:00:00] Weighted Error Value: White=0.03 (flawless) /Black=0.06 (flawless)} ({White should play} 72. Kc4 $16) 1/2-1/2